Workbook

Sheet List1
A3: Obec , IČ: Náklo, 00299251
A5: Rozpočtové opatření č. 6 - červen 2022
A7: V souladu s ustanovením § 16 zákona č. 250/2000 Sb., o rozpočtových pravidlech územních rozpočtů dojde k rozpočtovému
A8: opatření v případě změn rozpočtových prostředků na závazných ukazatelích.
A10: Rozpočtové opatření č. 6/2022 (předloženo na ZO 6. 6. 2022) a doplněno při jednání na ZO
A12: PŘÍJMY
A13: PAR | B13: POL | C13: UZ | D13: PARAGRAF | E13: popis | F13: Rozpočet na rok 2022 | G13: Rozpočet po změnách | H13: změna ROZP | I13: ROZP po ZMĚNĚ | J13: POZNÁMKA
B14: 4111 | C14: 98043 | E14: Neinvestiční přijaté transf.z všeob.pokl.správy SR | F14: 0 | G14: 0 | H14: 92291.69 | I14: =H14+G14 -> 92291.69 | J14: jednorázový nenávratný neúčelový příspěvek ze státního rozpočtu
A15: 0 | B15: 4112 | E15: Neinv.př.transfery ze SR v rámci souhr.dot.vztahu | F15: 472900 | G15: 472900 | H15: 13100 | I15: 486000 | J15: výše příspěvku na výkon státní správy na rok 2022
B16: 4116 | E16: Ostatní neinv. Přijaté tranfery ze SR | F16: 0 | G16: 844745.69 | H16: 243550 | I16: 1088295.69 | J16: výsadba stromů
B17: 1345 | E17: Př. z poplatku za obecní systém odpad.hosp. a příj. | F17: 480000 | G17: 480000 | H17: 120000 | I17: 600000 | J17: komunální odpad
B18: 1342 | E18: Příjem poplatku z pobytu | F18: 10000 | G18: 10000 | H18: 13845 | I18: 23845 | J18: poplatek z pobytu
B19: 1381 | E19: Př.z daně z hazard.her s výj.dílčí daně z tech.her | F19: 100000 | G19: 100000 | H19: 9055.82 | I19: 109055.82 | J19: daně z hazardních her
D20: bez ODPA | F20: 30550319.7 | G20: 31553514.22 | H20: =H18+H17+H16+H15+H14+H19 -> 491842.51 | I20: 32045356.73
A21: 3113 | B21: 2229 | E21: Ostatní přijaté vratky transferů a podobné příjmy | F21: 0 | G21: =F21 -> 0 | H21: 110010 | I21: =H21 -> 110010 | J21: Vratka ZŠ a MŠ Náklo - Šablony č. 2
A22: 3113 | D22: Základní školy | F22: 55000 | G22: 55000 | H22: =H21 -> 110010 | I22: =H22+G22 -> 165010
A23: 3639 | B23: 2132 | E23: Přijem z pronájmu nebo pachtu ost. nemov.věcí | F23: 0 | G23: 0 | H23: 4600 | I23: =H23+G23 -> 4600 | J23: pronájem sálu KD Mezice
A24: 3639 | D24: Komunální služby a územní rozvoj jinde nezařazené | F24: 125000 | G24: 125000 | H24: =H23 -> 4600 | I24: =H24+G24 -> 129600
A25: 6171 | B25: 2324 | E25: Přijaté neinvestiční příspěvky a náhrady | F25: 75000 | G25: 75000 | H25: =+H26+H27+H28+H29+H30+H31 -> 448374 | I25: =H25+F25 -> 523374 | J25: Educol Navrátilová, ÚP Svoboda, ÚP Dostálová, vratka
F26: 76000 | G26: 76000 | H26: =12729+48750+76215 -> 137694 | I26: =H26+F26 -> 213694 | J26: Vratka
H27: 182478 | J27: Navrátilová 85% Educol UZ 13013 Nástroj 104 Zdroj 5
H28: 32202 | J28: Navrátilová 15% Educol UZ 13013 Nástroj 104 Zdroj 1
H29: 48000 | J29: Svoboda UZ 13101 - ÚP
H30: 39542.4 | J30: Dostálová ÚP - UZ 13013 Nástroj 104 Zdroj 5 - 82,38%
H31: 8457.6 | J31: Dostálová ÚP - UZ 13013 Nástroj 104 Zdroj 1 - 17,62%
A32: 6171 | D32: Činnost místní samosprávy | F32: 76000 | G32: 176000 | H32: =H25 -> 448374 | I32: =H32+G32 -> 624374
D33: Celkem ZMĚNY v PŘÍJMECH | F33: 33700619.7 | G33: =[1]List1!$G$15 -> 34803814.22 | H33: =+H32+H22+H20+H24 -> 1054826.51 | I33: =H33+G33 -> 35858640.73
D35: Celkem PŘÍJMY | F35: =F33 -> 33700619.7 | G35: =G33 -> 34803814.22 | H35: =H33 -> 1054826.51 | I35: =G35+H35 -> 35858640.73
A37: VÝDAJE:
A38: PAR | B38: POL | C38: UZ | D38: PARAGRAF | E38: popis | F38: Rozpočet na rok 2022 | G38: Rozpočet po změnách | H38: změna ROZP | I38: ROZP po ZMĚNĚ | J38: POZNÁMKA
A39: 6171 | B39: 5169 | E39: Nákup ostatních služeb | F39: 1500000 | G39: 1500000 | H39: =16763.98+(4*16764.37)+299000 -> 382821.46 | I39: =H39+G39 -> 1882821.46 | J39: Nájemní smlouva ČEZ
A40: 6171 | D40: Činnost místní samosprávy | F40: 5427999 | G40: 9246630 | H40: =H39 -> 382821.46 | I40: =H40+G40 -> 9629451.46
A41: 2219 | B41: 5171 | E41: opravy a udržování | F41: 50000 | G41: 331706.55 | H41: 900000 | I41: 1231706.55 | J41: oprava cesty Náklo - Lhota nad Moravou - pojistná událost
A42: 2219 | D42: Ostatní záležitosti pozemních komunikací | F42: 247510 | G42: 621417.31 | H42: =H41 -> 900000 | I42: 1521417.31
A43: 2321 | B43: 5139 | E43: Nákup materiálu jinde nezařazený | F43: 300000 | G43: 41305.45 | H43: 258694.55 | I43: 300000
A44: 2321 | D44: Odvádění a čištění odpadních vod | F44: 1162500 | G44: =F44+E44 -> 1162500 | H44: =H43 -> 258694.55 | I44: 1421194.55
A45: 3639 | B45: 6121 | D45: Stavby | F45: 1950000 | G45: =[1]List1!$I$27 -> 1693635.11 | H45: 108433.84 | I45: =H45+G45 -> 1802068.95
A46: 3639 | B46: 6130 | D46: Pozemky | F46: 54935.7 | G46: 1283923.34 | H46: =-1175489.5-108433.84 -> -1283923.34 | I46: 0 | J46: oprava cesty Náklo - Lhota nad Moravou - pojistná událost, Sokol
A47: 3639 | D47: Komunální služby a územní rozvoj jinde nazařazené | F47: 7667935.7 | G47: 8925489.54 | H47: =H46+H45 -> -1175489.5 | I47: 7750000.04
A48: 3429 | B48: 6322 | E48: Investiční transfery spolkům | F48: 320000 | G48: 320000 | H48: 250000 | I48: 570000 | J48: Sokol
A49: 3429 | D49: Ostatní zájmová činnost a rekreace | F49: 5925352 | G49: 5930352 | H49: =H48 -> 250000 | I49: 6180352
A50: 5512 | B50: 6121 | E50: Stavby | F50: 0 | G50: 200000 | H50: 200000 | I50: 400000 | J50: Kiosek hasiči Mezice
A51: 5512 | D51: Požární ochrana - dobrovolná část | F51: 147000 | G51: =[1]List1!$I$33 -> 375542.87 | H51: =H50 -> 200000 | I51: 575542.87
A52: 3511 | B52: 6313 | E52: Investiční transfery nefinančním podnikatelským subjektům - právnickým osobám | F52: 0 | G52: 0 | H52: 238800 | I52: 238800 | J52: investiční dotace s vypořádáním - MUDr. Adamcová - AMIMED s.r.o.
A53: 3511 | D53: Činnost ordinací praktických lékařů | F53: 0 | G53: 0 | H53: =H52 -> 238800 | I53: 238800
D54: Celkem ZMĚNY ve VÝDAJÍCH | F54: 33700619.7 | G54: =[1]List1!$G$37 -> 38512723.69 | H54: =+H42+H40+H44+H47+H49+H53+H51 -> 1054826.51 | I54: =H54+G54 -> 39567550.2
D56: Celkem VÝDAJE | G56: =G54 -> 38512723.69 | H56: =H54 -> 1054826.51 | I56: =I54 -> 39567550.2
D58: Celkem 5XXX
D59: Celkem 6XXX
A62: FINANCOVÁNÍ
A63: PAR | B63: POL | C63: UZ | D63: PARAGRAF | E63: popis | F63: Rozpočet na rok 2022 | G63: Rozpočet po změnách | H63: změna ROZP | I63: ROZP po ZMĚNĚ | J63: POZNÁMKA
D66: Celkem ZMĚNY ve FINANCOVÁNÍ: | I66: =I64 -> 0
D69: REKAPITULACE:
D71: Celkem PŘÍJMY | G71: =[1]List1!I54 -> 34803814.22 | H71: =H33 -> 1054826.51 | I71: =H71+G71 -> 35858640.73
D72: Celkem FINANCOVÁNÍ: | G72: =[1]List1!I55 -> 3708909.47 | H72: =I66 -> 0 | I72: =H72+G72 -> 3708909.47
D73: Celkem PŘÍJMY+FINANCOVÁNÍ | G73: =[1]List1!I56 -> 38512723.69 | H73: =+H72+H71 -> 1054826.51 | I73: =I72+I71 -> 39567550.2
D75: Celkem VÝDAJE | G75: =[1]List1!I58 -> 38512723.69 | H75: =H56 -> 1054826.51 | I75: =I56 -> 39567550.2
A78: Důvodová zpráva k rozpočtovému opatření č. 6 /2022
A80: Přesun prostředků v rámci nezajištěného výdaje je Čerpán z rezervy obce.
A82: Správce rozpočtu :
A84: Starosta obce :
A86: ZO schvaluje dne 6. 6. 2022 rozpočtové opatření č. 6/2022 v předloženém rozsahu.

Sheet List2
A1: TEXTY PRO FORMULÁŘ ÚPRAVA ROZPOČTU - na začátek kopírují se řádky 3-13
A2: poznámka: Texty, které budou přenášeny z tohoto formuláře, musí být zapsány pouze ve sloupci A
A5: Obec , IČ: Náklo, 00299251
A7: Rozpočtové změny roku 2019 -duben
A9: V souladu s ustanovením § 16 zákona č. 250/2000 Sb., o rozpočtových pravidlech územních rozpočtů dojde k rozpočtovému
A10: opatření v případě změn rozpočtových prostředků na závazných ukazatelích.
A12: Rozpočtové opatření č. 1/2019 (předloženo na ZQ 6. 6. 2018) a doplněno při jednání na ZO
A14: TEXTY PRO FORMULÁŘ ÚPRAVA ROZPOČTU - na začátek kopírují se řádky 16-32
A16: Důvodová zpráva k rozpočtovému opatření č. 1/2019
A18: Přesun prostředků v rámci nezajištěného výdaje je Čerpán z rezervy obce.
A20: Správce rozpočtu :
A22: Starosta obce :
A24: ZO schvaluje dne 6. 6. 2018 rozpočtové opatření č. 3/2018 v předloženém rozsahu Usnesením č. 1038/1860

Sheet List3
